bitfinex/quotes_ETHUSD_20230703
["timestamp","ask_amount","ask_price","bid_price","bid_amount"]
[1688350870166,12.81098816,1950.8,1950.7,2.5]
[1688350871772,12.81098816,1950.8,1950.7,2.50338113]
[1688350875360,14.37877286,1950.8,1950.7,2.50338113]
[1688350882765,17.42182286,1950.8,1950.7,2.50338113]
[1688350883390,24.81482286,1950.8,1950.7,2.50338113]
[1688350883924,25.73282286,1950.8,1950.7,2.50338113]
[1688350884477,30.73282286,1950.8,1950.7,2.50338113]
[1688350890611,29.81482286,1950.8,1950.7,2.50338113]
[1688350890790,30.72682286,1950.8,1950.7,2.50338113]
[1688350893339,29.81482286,1950.8,1950.7,2.50338113]
[1688350894040,30.23189432,1950.8,1950.7,2.50338113]
[1688350894544,24.35889432,1950.8,1950.7,2.50338113]
[1688350894701,22.79110962,1950.8,1950.7,2.50338113]
[1688350895441,7.68488816,1950.8,1950.7,2.50338113]
[1688350895753,12.81098816,1950.8,1950.7,2.50338113]
[1688350896448,14.81098816,1950.8,1950.7,2.50338113]
[1688350896959,17.37403816,1950.8,1950.7,2.50338113]
[1688350898725,17.85403816,1950.8,1950.7,2.50338113]
[1688350898926,20.4144565,1950.8,1950.7,2.50338113]
[1688350900358,25.4144565,1950.8,1950.7,2.50338113]
[1688350902439,22.85403816,1950.8,1950.7,2.50338113]
[1688350902635,8.03878816,1950.8,1950.7,2.50338113]
[1688350902864,7.55878816,1950.8,1950.7,2.50338113]
[1688350903362,2.55878816,1950.8,1950.7,2.50338113]
[1688350906484,17.2513,1951.0,1950.7,3.42338113]
[1688350906671,17.2513,1951.0,1950.7,3.35837424]
[1688350906672,2.55878816,1950.9,1950.7,3.35837424]
[1688350908286,12.81054816,1950.9,1950.7,2.50338113]
[1688350909859,15.37345816,1950.9,1950.7,2.50338113]
[1688350911591,0.48,1950.8,1950.7,2.50338113]
[1688350911785,15.85403816,1950.8,1950.7,2.50338113]
[1688350913467,20.85403816,1950.8,1950.7,2.50338113]
[1688350914388,23.19573298,1950.8,1950.7,2.47763813]
[1688350924289,25.19573298,1950.8,1950.7,2.47763813]
[1688350924901,35.71483298,1950.8,1950.7,2.47763813]
[1688350925702,36.63483298,1950.8,1950.7,2.47763813]
[1688350925910,2.0,1950.4,1950.1,30.56]
[1688350926246,2.0,1950.4,1950.0,0.25]
[1688350926247,9.95178816,1950.2,1950.0,0.25]
[1688350926460,23.33560816,1950.1,1950.0,0.25]
[1688350926737,23.83209944,1950.1,1950.0,0.25]
[1688350926931,25.30181731,1950.1,1950.0,0.25]
[1688350928498,30.30181731,1950.1,1950.0,0.25]
[1688350929505,27.73784731,1950.1,1950.0,0.25]
[1688350929710,27.73784731,1950.1,1950.0,0.25318303]
[1688350929948,22.34484731,1950.1,1950.0,0.25318303]
[1688350930415,17.34484731,1950.1,1950.0,0.25318303]
[1688350931448,22.34484731,1950.1,1950.0,0.25318303]
[1688350933407,8.03878816,1950.1,1950.0,0.25318303]
[1688350933729,7.55878816,1950.1,1950.0,0.25318303]
[1688350933939,5.0,1950.1,1950.0,0.25318303]
[1688350934530,5.0,1950.1,1950.0,1.17318303]
[1688350934810,5.0,1950.1,1950.0,6.63068909]
[1688350935005,5.0,1950.1,1950.0,7.806586]
[1688350935461,10.19,1950.4,1950.0,7.806586]
[1688350935620,12.74878816,1950.4,1950.0,6.886586]
[1688350935826,12.74878816,1950.4,1950.2,0.92]
[1688350936705,12.74878816,1950.4,1950.3,0.00331802]
[1688350936909,17.87593816,1950.4,1950.3,0.00331802]
[1688350937154,12.74878816,1950.4,1950.3,0.00331802]
[1688350937444,23.00308816,1950.4,1950.3,0.00331802]
[1688350938262,28.38345826,1950.4,1950.3,0.00331802]
[1688350938855,28.38345826,1950.4,1950.0,1.50030606]
[1688350939155,10.25534,1950.2,1950.0,1.50030606]
[1688350939324,7.68672816,1950.1,1950.0,6.62850606]
[1688350939710,7.68672816,1950.1,1950.0,6.63168909]
[1688350939911,2.55878816,1950.1,1950.0,1.50348909]
[1688350941425,12.81466816,1950.1,1950.0,1.50348909]
[1688350941632,14.35251898,1950.1,1950.0,0.25318303]
[1688350942314,19.35251898,1950.1,1950.0,0.25318303]
[1688350942735,22.39648898,1950.1,1950.0,0.25318303]
[1688350944566,13.16672816,1950.1,1950.0,0.25318303]
[1688350944768,2.0,1950.8,1950.0,1.49848909]
[1688350945071,7.12621,1950.8,1950.3,5.45654606]
[1688350945272,12.25231,1950.8,1950.3,10.58395606]
[1688350945479,14.81536,1950.8,1950.3,6.77132267]
[1688350945632,14.81536,1950.8,1950.4,0.00314442]
[1688350945832,14.81536,1950.8,1950.5,0.921]
[1688350946334,19.81536,1950.8,1950.5,0.921]
[1688350946530,17.25231,1950.8,1950.6,0.921]
[1688350946750,0.48,1950.7,1950.6,0.921]
[1688350946961,5.60636,1950.7,1950.6,0.921]
[1688350947392,10.73272,1950.7,1950.6,0.921]
[1688350947830,13.2959,1950.7,1950.5,0.921]
[1688350948350,18.2959,1950.7,1950.5,0.921]
[1688350949279,18.2959,1950.7,1950.4,0.92314442]
[1688350949447,5.60636,1950.7,1950.4,0.64111347]
[1688350949650,2.55878816,1950.7,1950.6,0.32930606]
[1688350950885,7.68514816,1950.7,1950.6,1.25343118]
[1688350951235,2.55878816,1950.7,1950.6,1.25343118]
[1688350952129,15.25196,1950.9,1950.6,6.38005118]
[1688350952332,2.55878816,1950.8,1950.7,0.921]
[1688350952838,2.55878816,1950.8,1950.7,0.92427939]
[1688350953482,7.68488816,1950.8,1950.7,0.00327939]
[1688350954685,7.68488816,1950.8,1950.6,0.32930606]
[1688350954979,12.81098816,1950.8,1950.6,5.45590606]
[1688350955681,7.68488816,1950.8,1950.7,0.00327939]
[1688350956043,12.81098816,1950.8,1950.7,0.00327939]
[1688350956737,12.81098816,1950.8,1950.6,5.45582606]
[1688350956738,7.68488816,1950.8,1950.6,5.45582606]
[1688350957278,2.55878816,1950.8,1950.7,0.921]
[1688350957648,2.55878816,1950.8,1950.7,0.92411547]
[1688350960346,10.26796128,1951.0,1950.7,0.92411547]
[1688350960554,2.55878816,1950.9,1950.7,0.00311547]
[1688350961784,2.55878816,1950.9,1950.6,11.50329606]
[1688350962089,0.01649128,1951.0,1950.7,0.921]
[1688350962299,2.57527944,1951.0,1950.7,6.04721]
[1688350962793,2.57527944,1951.0,1950.8,0.00310582]
[1688350963220,2.55878816,1951.0,1950.8,0.00310582]
[1688350963508,5.0,1951.1,1950.8,1.5281374]
[1688350963799,5.0,1951.1,1950.8,5.7341674]
[1688350964101,5.0,1951.1,1950.8,10.8602674]
[1688350964476,7.12467,1951.4,1951.0,0.913]
[1688350964680,2.55878816,1951.3,1951.0,6.03855]
[1688350964896,2.55878816,1951.3,1951.0,7.18822461]
[1688350965266,2.55878816,1951.3,1951.0,2.06267461]
[1688350965702,2.55878816,1951.3,1951.1,0.00324077]
[1688350967159,7.68358816,1951.3,1951.1,0.00324077]
[1688350967379,12.80838816,1951.3,1951.1,0.00324077]
[1688350967577,15.04545298,1951.3,1951.1,0.00324077]
[1688350967785,15.04545298,1951.3,1950.9,0.32930606]
[1688350967999,12.80838816,1951.3,1950.9,0.32930606]
[1688350968489,17.80838816,1951.3,1950.9,0.32930606]
[1688350968689,17.80838816,1951.3,1951.0,0.00308653]
[1688350970701,17.80838816,1951.3,1951.1,0.00324077]
[1688350971907,17.80838816,1951.3,1950.9,5.41822259]
[1688350972468,17.80838816,1951.3,1950.9,0.29239259]
[1688350972696,20.21626298,1951.3,1951.0,0.00313171]
[1688350972899,22.77865298,1951.3,1951.0,0.00313171]
[1688350976364,5.0,1951.2,1951.0,0.00313171]
[1688350976580,7.68409816,1951.1,1951.0,0.00313171]
[1688350978463,17.80940816,1951.1,1951.0,0.00313171]
[1688350978766,17.80510544,1951.1,1951.0,0.00313171]
[1688350980764,12.67979544,1951.1,1951.0,0.00313171]
[1688350981053,7.55448544,1951.1,1951.0,5.12870171]
[1688350981446,2.55448544,1951.1,1951.0,5.12870171]
[1688350987682,2.55448544,1951.1,1951.0,0.00313171]
[1688350987856,2.55448544,1951.1,1951.0,5.12870171]
[1688350989303,7.67979544,1951.1,1951.0,0.00313171]
[1688350989459,12.80510544,1951.1,1951.0,0.00313171]
[1688350990262,7.67979544,1951.1,1951.0,0.00313171]
[1688350990464,12.67979544,1951.1,1951.0,0.00313171]
[1688350991507,7.67979544,1951.1,1951.0,0.00313171]
[1688350992060,2.55448544,1951.1,1951.0,5.12870171]
[1688350992358,7.67979544,1951.1,1951.0,5.12870171]
[1688350994405,7.67979544,1951.1,1951.0,0.00313171]
[1688350995068,12.80510544,1951.1,1951.0,0.00313171]
[1688350997310,7.67979544,1951.1,1951.0,0.00313171]
[1688350998177,2.55448544,1951.1,1951.0,0.00313171]
[1688350998896,2.50448544,1951.1,1951.0,0.00313171]
[1688351001495,5.0,1951.3,1951.0,11.30896514]
[1688351001841,5.0,1951.3,1951.1,0.3063687]
[1688351001982,5.0,1951.3,1951.2,12.81262]
[1688351002378,5.8295,1951.7,1951.2,10.2501]
[1688351002622,2.55878816,1951.6,1951.2,11.1701]
[1688351002934,2.55878816,1951.6,1951.3,5.12770275]
[1688351003071,7.12381,1951.7,1951.3,10.25248275]
[1688351003275,9.68259816,1951.7,1951.3,10.25248275]
[1688351003937,9.68259816,1951.7,1951.3,5.12770275]
[1688351004482,14.68259816,1951.7,1951.3,5.12770275]
[1688351004725,7.55878816,1951.7,1951.3,11.78595215]
[1688351004909,5.0,1951.7,1951.5,6.04406]
[1688351005327,5.0,1951.7,1951.4,0.29239259]
[1688351005538,7.13350329,1952.0,1951.6,0.29239259]
[1688351005682,14.81545145,1952.0,1951.6,5.41954254]
[1688351006436,9.69229145,1952.0,1951.6,5.41954254]
[1688351006732,9.69229145,1952.0,1951.6,6.82143379]
[1688351008942,14.81545145,1952.0,1951.6,6.82143379]
[1688351009092,14.81545145,1952.0,1951.6,5.41954254]
[1688351009528,19.81545145,1952.0,1951.6,5.41954254]
[1688351009724,14.69229145,1952.0,1951.6,5.41954254]
[1688351010400,9.69229145,1952.0,1951.6,5.41954254]
[1688351012028,14.81545145,1952.0,1951.6,5.41954254]
[1688351012431,14.81545145,1952.0,1951.6,0.00332995]
[1688351012432,2.55878816,1951.9,1951.6,0.00332995]
[1688351012635,2.55878816,1951.9,1951.6,0.29572254]
[1688351012932,2.55878816,1951.9,1951.6,0.00332995]
[1688351012933,13.28867,1951.8,1951.6,0.00332995]
[1688351013097,2.55878816,1951.7,1951.6,0.00332995]
[1688351013292,14.87099398,1951.7,1951.6,0.00332995]
[1688351013720,14.87099398,1951.7,1951.3,5.12468]
[1688351013925,14.87099398,1951.7,1951.4,5.12441]
[1688351014131,14.87099398,1951.7,1951.2,5.83337635]
[1688351014132,17.43285398,1951.7,1951.2,5.83337635]
[1688351014434,10.24862,1951.5,1951.2,0.70842635]
[1688351014597,12.80740816,1951.5,1951.2,0.70842635]
[1688351014937,12.80740816,1951.5,1951.3,0.00310275]
[1688351015436,7.68309816,1951.5,1951.3,0.00310275]
[1688351015862,2.55878816,1951.5,1951.3,0.00310275]
[1688351016132,7.68307816,1951.5,1951.3,0.00310275]
[1688351016533,7.68307816,1951.5,1951.3,5.12787275]
[1688351019911,2.55878816,1951.5,1951.3,5.12787275]
[1688351021215,7.68306816,1951.5,1951.3,5.12787275]
[1688351021912,12.80734816,1951.5,1951.3,5.12787275]
[1688351022814,12.80734816,1951.5,1951.3,0.00310275]
[1688351024134,7.68306816,1951.5,1951.3,5.12786275]
[1688351024813,12.80734816,1951.5,1951.3,0.00310275]
[1688351025010,2.55878816,1951.4,1951.3,0.00310275]
[1688351025313,13.28782816,1951.4,1951.3,0.00310275]
[1688351028535,15.85008816,1951.4,1951.3,0.00310275]
[1688351028848,15.85008816,1951.4,1951.1,5.12531]
[1688351029356,15.85008816,1951.4,1951.0,10.54331259]
[1688351029742,15.85008816,1951.4,1951.1,0.00433082]
[1688351030071,17.58501336,1951.4,1951.1,0.00433082]
[1688351031128,17.58501336,1951.4,1951.1,5.12956082]
[1688351031441,9.89823336,1951.4,1951.1,5.12956082]
[1688351031749,8.16330816,1951.4,1951.1,5.12956082]
[1688351033113,8.11330816,1951.4,1951.1,5.12956082]
[1688351034334,8.11330816,1951.4,1951.1,10.25487082]
[1688351034740,13.23782816,1951.4,1951.1,5.12956082]
[1688351037677,8.11330816,1951.4,1951.1,5.12956082]
[1688351039156,13.23782816,1951.4,1951.1,5.12956082]
[1688351041482,17.7661851,1951.4,1951.1,0.00433082]
[1688351041902,0.48,1951.3,1951.1,0.00433082]
[1688351042046,12.80888816,1951.2,1951.1,0.00433082]
[1688351042793,12.80888816,1951.2,1950.9,5.12582]
[1688351043640,12.80888816,1951.2,1951.0,0.00391029]
[1688351046673,12.80888816,1951.2,1950.8,10.95661905]
[1688351046862,12.80888816,1951.2,1950.8,5.83061905]
[1688351047786,12.80888816,1951.2,1950.9,0.00392284]
[1688351051680,17.14317598,1951.2,1950.9,0.00392284]
[1688351052506,22.14317598,1951.2,1950.9,0.00392284]
[1688351053522,24.14317598,1951.2,1950.9,0.00392284]
[1688351053664,24.14317598,1951.2,1950.5,0.29239259]
[1688351053665,1.401,1951.1,1950.5,0.29239259]
[1688351053861,15.37323816,1951.0,1950.5,0.29239259]
[1688351054062,2.01732382,1950.9,1950.5,0.29239259]
[1688351054364,12.81106816,1950.8,1950.5,0.29239259]
[1688351054865,12.81106816,1950.8,1950.6,0.00466861]
[1688351056276,7.68491816,1950.8,1950.6,0.00466861]
[1688351056597,0.48,1950.9,1950.6,10.25789861]
[1688351056766,2.55878816,1950.9,1950.7,1.02578986]
[1688351056960,2.55878816,1950.9,1950.7,5.12632]
[1688351057678,2.55878816,1950.9,1950.8,0.00463723]
[1688351058074,12.81044816,1950.9,1950.8,0.00463723]
[1688351058289,15.85335816,1950.9,1950.8,0.00463723]
[1688351058905,15.85335816,1950.9,1950.5,6.33924259]
[1688351059208,2.55878816,1950.8,1950.5,6.33924259]
[1688351059503,12.81123816,1950.8,1950.5,5.41924259]
[1688351059710,12.81123816,1950.8,1950.6,0.00466861]
[1688351066309,14.60791298,1950.8,1950.6,0.00466861]
[1688351066519,0.48,1950.7,1950.6,0.00466861]
[1688351066717,15.85468816,1950.7,1950.3,0.29239259]
[1688351067020,5.12689,1950.5,1950.3,0.29239259]
[1688351067820,5.12689,1950.5,1950.4,0.0047]
[1688351068789,5.12689,1950.5,1950.3,0.29239259]
[1688351069724,5.12689,1950.5,1950.4,0.0047]
[1688351070727,12.81228816,1950.6,1950.3,0.6973602]
[1688351070902,7.68551816,1950.6,1950.3,0.6973602]
[1688351071804,7.68551816,1950.6,1950.4,0.0047]
[1688351072737,7.68551816,1950.6,1950.3,0.6973602]
[1688351073523,7.68551816,1950.6,1950.3,10.9521602]
[1688351073728,7.68551816,1950.6,1950.4,0.0047]
[1688351074132,7.68551816,1950.6,1950.4,5.13165]
[1688351074635,2.55878816,1950.6,1950.4,10.2588]
[1688351077614,2.55878816,1950.6,1950.4,5.13165]
[1688351077831,7.68542816,1950.6,1950.4,5.13165]
[1688351078373,7.68542816,1950.6,1950.4,10.2588]
[1688351078542,2.55878816,1950.6,1950.4,10.2588]
[1688351080570,5.12619,1950.8,1950.4,14.26645502]
[1688351080760,10.25254,1950.8,1950.6,5.12662]
[1688351080941,10.25254,1950.8,1950.5,0.92]
[1688351081142,15.37437816,1950.8,1950.4,2.4657]
[1688351081350,17.09340598,1950.8,1950.4,0.0047]
[1688351081531,5.12662,1950.6,1950.4,5.13173]
[1688351081728,2.55878816,1950.6,1950.4,5.12703]
[1688351082630,11.70011128,1951.0,1950.5,0.00468431]
[1688351082859,5.12651,1950.7,1950.5,5.13155431]
[1688351083773,5.12651,1950.7,1950.5,0.00468431]
[1688351085813,1.7693,1950.8,1950.5,0.00468431]
[1688351086010,7.13729128,1951.0,1950.7,0.92]
[1688351086011,7.1208,1951.0,1950.7,0.92]
[1688351086162,7.1208,1951.0,1950.7,11.17258]
[1688351086163,5.0,1951.0,1950.7,11.17258]
[1688351086360,4.53935184,1951.2,1950.7,11.17258]
[1688351086361,4.53935184,1951.2,1950.7,12.57293997]
[1688351086561,2.55878816,1951.1,1950.7,12.57293997]
[1688351086792,2.55878816,1951.1,1950.8,0.00463723]
[1688351086999,2.55878816,1951.1,1950.8,5.13060723]
[1688351087210,6.9189,1951.3,1950.9,0.29239259]
[1688351087372,6.9189,1951.3,1951.0,12.81382]
[1688351087373,5.0,1951.3,1951.0,12.81382]
[1688351087701,5.0,1951.3,1950.9,1.46567654]
[1688351087702,12.68361816,1951.3,1951.1,0.00459016]
[1688351087907,17.80844816,1951.3,1951.1,0.00459016]
[1688351088357,12.80844816,1951.3,1951.1,0.00459016]
[1688351088864,2.55878816,1951.2,1951.1,0.00459016]
[1688351089656,2.55878816,1951.2,1950.9,10.54376259]
[1688351089860,2.55878816,1951.2,1950.9,11.46476259]
[1688351090695,2.55878816,1951.2,1951.0,0.00460585]
[1688351090861,8.13390826,1951.2,1951.0,0.00460585]
[1688351091061,13.25898826,1951.2,1951.0,0.00460585]
[1688351091469,15.82150826,1951.2,1951.0,0.00460585]
[1688351091701,0.48,1951.1,1951.0,0.00460585]
[1688351091864,13.28940816,1951.1,1950.8,0.29239259]
[1688351092059,2.55878816,1951.0,1950.6,11.46341259]
[1688351092265,10.73178,1950.9,1950.6,0.29239259]
[1688351092564,10.73178,1950.9,1950.6,14.02190259]
[1688351092565,3.03878816,1950.9,1950.6,14.02190259]
[1688351092862,3.03878816,1950.9,1950.8,5.1261]
[1688351093662,3.03878816,1950.9,1950.8,5.13073723]
[1688351096168,10.14169128,1951.2,1950.8,10.25683723]
[1688351096376,3.03878816,1951.1,1950.8,10.25683723]
[1688351098390,8.16413816,1951.1,1950.8,10.25683723]
[1688351100907,8.16413816,1951.1,1950.8,5.13073723]
[1688351101104,13.28948816,1951.1,1950.8,5.13073723]
[1688351102407,8.16413816,1951.1,1950.8,5.13073723]
[1688351105014,8.16415816,1951.1,1950.8,5.13073723]
[1688351105354,3.03878816,1951.1,1950.8,5.13073723]
[1688351105614,10.14162128,1951.2,1950.8,5.13073723]
[1688351105615,5.0,1951.2,1950.8,15.05897454]
[1688351105776,7.55878816,1951.2,1950.8,15.05897454]
[1688351106306,7.55878816,1951.2,1950.8,12.49592454]
[1688351106495,2.55878816,1951.2,1950.8,12.49592454]
[1688351107274,7.68385816,1951.2,1950.8,12.49592454]
[1688351107476,12.80892816,1951.2,1950.8,10.54922982]
[1688351108514,17.80892816,1951.2,1950.8,10.54922982]
[1688351108923,12.68385816,1951.2,1950.8,10.54922982]
[1688351109385,7.68385816,1951.2,1950.8,10.54922982]
[1688351112913,2.55878816,1951.2,1950.8,10.54922982]
[1688351113282,2.55878816,1951.2,1950.8,12.1106768]
[1688351118022,5.0,1951.3,1950.9,0.918]
[1688351118192,7.55878816,1951.3,1951.0,11.1719]
[1688351118526,7.55878816,1951.3,1951.0,6.04634]
[1688351118527,2.55878816,1951.3,1951.0,6.04634]
[1688351118687,2.55878816,1951.3,1951.1,0.00459016]
[1688351119333,1.7659,1951.4,1951.1,5.12979016]
[1688351119622,4.32468816,1951.4,1951.1,10.25510016]
[1688351119920,2.55878816,1951.4,1951.1,10.25510016]
[1688351124650,2.55878816,1951.4,1951.2,0.01345289]
[1688351124833,9.0309,1951.5,1951.2,0.01345289]
[1688351124834,5.0,1951.5,1951.2,12.81251]
[1688351125017,5.0,1951.5,1951.2,15.11927102]
[1688351125539,5.0,1951.5,1951.2,12.55675102]
[1688351125712,5.0,1951.5,1951.3,0.0045588]
[1688351126110,5.0,1951.5,1951.3,5.1292988]
[1688351126526,11.957,1951.6,1951.3,5.1292988]
[1688351126706,14.51578816,1951.6,1951.3,5.1292988]
[1688351129613,11.957,1951.6,1951.3,5.1292988]
[1688351130403,6.957,1951.6,1951.3,5.1292988]
[1688351132624,6.957,1951.6,1951.3,0.0045588]
[1688351133022,1.833,1951.6,1951.3,5.1292888]
[1688351135449,6.957,1951.6,1951.3,5.1292888]
[1688351136521,6.957,1951.6,1951.3,0.0045588]
[1688351138915,5.0,1951.7,1951.3,1.32239227]
[1688351139248,5.0,1951.7,1951.6,11.168]
[1688351139450,5.0,1951.8,1951.6,10.248]
[1688351139796,5.0,1951.8,1951.6,10.25146432]
[1688351140030,5.0,1951.8,1951.6,11.65405501]
[1688351140505,1.7725,1951.9,1951.6,11.65405501]
[1688351140844,2.55878816,1951.8,1951.6,0.00346432]
[1688351141052,12.80580816,1951.8,1951.6,0.00346432]
[1688351142605,7.68225816,1951.8,1951.6,0.00346432]
[1688351142905,7.68225816,1951.8,1951.6,5.12741432]
[1688351145529,2.55878816,1951.8,1951.6,0.00346432]
[1688351145694,7.68239816,1951.8,1951.6,5.12744432]
[1688351147116,2.55878816,1951.8,1951.6,10.25144432]
[1688351148556,7.68228816,1951.8,1951.6,5.12744432]
[1688351149449,2.55878816,1951.8,1951.6,5.12744432]
[1688351149956,7.68227816,1951.8,1951.6,5.12744432]
[1688351151220,2.55878816,1951.8,1951.6,5.12744432]
[1688351163281,1.7725,1951.9,1951.6,10.25144432]
[1688351163586,5.12325,1951.9,1951.6,10.25144432]
[1688351164565,9.18793457,1952.0,1951.6,11.56204001]
[1688351164768,2.02694457,1952.0,1951.6,11.56204001]
[1688351165179,7.14996457,1952.0,1951.6,11.56204001]
[1688351167184,2.02694457,1952.0,1951.6,11.56204001]
[1688351167481,7.14996457,1952.0,1951.6,11.56204001]
[1688351168896,2.01045329,1952.0,1951.7,2.069204]
[1688351169063,2.01045329,1952.0,1951.7,7.192814]
[1688351169771,2.01045329,1952.0,1951.8,0.00344495]
[1688351174063,7.13346329,1952.0,1951.8,0.00344495]
[1688351174464,8.83056329,1952.0,1951.8,0.00344495]
[1688351174698,8.83056329,1952.0,1951.6,6.04494]
[1688351174914,8.83056329,1952.0,1951.6,7.23072115]
[1688351175723,8.83056329,1952.0,1951.7,0.00345463]
[1688351178017,13.95357329,1952.0,1951.7,0.00345463]
[1688351178232,19.07383145,1952.0,1951.7,0.00345463]
[1688351178737,19.07383145,1952.0,1951.5,11.86810152]
[1688351178909,21.2373486,1952.0,1951.5,11.86810152]
[1688351179796,21.2373486,1952.0,1951.6,0.00363079]
[1688351180139,21.2373486,1952.0,1951.6,5.12753079]
[1688351182438,2.55878816,1951.9,1951.6,0.00363079]
[1688351182638,10.24694,1951.8,1951.6,0.00363079]
[1688351182844,12.80572816,1951.8,1951.6,0.00363079]
[1688351183149,12.80572816,1951.8,1951.6,5.12761079]
[1688351183747,12.80572816,1951.8,1951.6,0.00363079]
[1688351183748,2.55878816,1951.7,1951.6,0.00363079]
[1688351183947,7.68251816,1951.7,1951.6,0.00363079]
[1688351184249,12.80624816,1951.7,1951.6,0.00363079]
[1688351184555,14.60164816,1951.7,1951.6,0.00363079]
[1688351184709,15.19702736,1951.7,1951.3,0.29239259]
[1688351184917,10.07329736,1951.7,1951.3,5.41707259]
[1688351185117,11.86869736,1951.7,1951.3,5.41707259]
[1688351185453,19.55428736,1951.7,1951.2,5.41731259]
[1688351185756,0.48,1951.6,1951.4,0.00365017]
[1688351185967,12.80730816,1951.5,1951.4,0.00365017]
[1688351186119,13.28730816,1951.5,1951.4,0.00365017]
[1688351186868,13.28730816,1951.5,1951.3,5.12467]
[1688351187016,13.28730816,1951.5,1951.2,5.41729259]
[1688351187017,15.8469596,1951.5,1951.2,5.41727259]
[1688351187619,13.2848296,1951.5,1951.2,10.54232259]
[1688351187817,13.2848296,1951.5,1951.3,0.00349337]
[1688351188033,13.2848296,1951.5,1951.3,5.12824337]
[1688351188755,8.1605696,1951.5,1951.3,5.12824337]
[1688351190759,8.1605696,1951.5,1951.3,0.00349337]
[1688351190914,14.94277814,1951.5,1951.3,0.00349337]
[1688351194657,14.94277814,1951.5,1951.3,5.12824337]
[1688351194952,13.2848296,1951.5,1951.3,5.12824337]
[1688351195532,8.1605696,1951.5,1951.3,5.12824337]
[1688351196366,3.0363096,1951.5,1951.3,5.12824337]
[1688351196954,8.1605796,1951.5,1951.3,5.12824337]
[1688351199830,13.2848496,1951.5,1951.3,5.12824337]
[1688351205054,8.1605796,1951.5,1951.3,5.12824337]
[1688351209810,13.2848396,1951.5,1951.3,0.00349337]
[1688351210851,8.1605696,1951.5,1951.3,0.00349337]
[1688351211219,0.48,1951.4,1951.3,0.00349337]
[1688351211420,3.03878816,1951.4,1951.3,0.00349337]
[1688351213445,3.03878816,1951.4,1951.3,5.12827337]
[1688351214720,8.16330816,1951.4,1951.3,5.12827337]
[1688351217065,8.16330816,1951.4,1951.3,0.00349337]
[1688351220572,3.03878816,1951.4,1951.3,0.00349337]
[1688351221784,8.16330816,1951.4,1951.3,0.00349337]
[1688351224256,9.66582498,1951.4,1951.3,0.00349337]
[1688351224564,17.35260498,1951.4,1951.3,0.00349337]
[1688351224782,17.35260498,1951.4,1951.0,0.29239259]
[1688351224939,12.80859816,1951.3,1951.0,0.29239259]
[1688351225650,14.62869816,1951.3,1951.0,0.29239259]
[1688351225847,14.62869816,1951.3,1951.1,0.00353583]
[1688351226977,9.50368816,1951.3,1951.1,0.00353583]
[1688351227134,7.68358816,1951.3,1951.1,0.00353583]
[1688351232487,2.55878816,1951.3,1951.1,0.00353583]
[1688351233489,2.55878816,1951.3,1951.1,5.12884583]
[1688351235377,7.68360816,1951.3,1951.1,5.12884583]
[1688351237587,0.48,1951.4,1951.2,0.921]
[1688351237759,3.03878816,1951.4,1951.2,11.17441613]
[1688351238158,3.03878816,1951.4,1951.2,6.04936613]
[1688351239000,3.03878816,1951.4,1951.2,5.12836613]
[1688351239859,3.03878816,1951.4,1951.2,6.04136613]
[1688351240060,3.03878816,1951.4,1951.2,7.03891472]
[1688351240952,3.03878816,1951.4,1951.2,6.12591472]
[1688351242214,0.48,1951.4,1951.2,6.12591472]
[1688351242361,0.48,1951.5,1951.2,6.12591472]
[1688351242703,3.03878816,1951.5,1951.2,6.12591472]
[1688351243470,3.03878816,1951.5,1951.2,11.54335731]
[1688351243804,3.03878816,1951.5,1951.3,11.40360573]
[1688351244103,0.48,1951.5,1951.3,11.40360573]
[1688351244302,12.09303,1951.8,1951.3,11.40360573]
[1688351244503,3.03878816,1951.7,1951.3,11.40360573]
[1688351244676,3.03878816,1951.7,1951.4,0.00334025]
[1688351244861,3.03878816,1951.7,1951.4,5.12779025]
[1688351246995,3.03878816,1951.7,1951.4,12.60636844]
[1688351247208,3.03878816,1951.7,1951.4,15.16862844]
[1688351247407,5.12351,1951.8,1951.4,15.16862844]
[1688351247731,7.68229816,1951.8,1951.4,15.16862844]
[1688351248017,2.55878816,1951.8,1951.4,15.16862844]
[1688351248183,6.86482,1951.9,1951.6,10.24792]
[1688351248184,1.7416,1951.9,1951.6,10.24792]
[1688351248562,4.30038816,1951.9,1951.6,10.24792]
[1688351248887,2.55878816,1951.9,1951.7,0.0033112]
[1688351253806,7.68201816,1951.9,1951.7,0.0033112]
[1688351254837,2.55878816,1951.9,1951.7,0.0033112]
[1688351255146,2.55878816,1951.9,1951.7,5.1270112]
[1688351255790,13.99823329,1952.0,1951.7,11.30506858]
[1688351255791,2.01045329,1952.0,1951.7,11.30506858]
[1688351256018,12.25644329,1952.0,1951.7,6.18133858]
[1688351256246,12.25644329,1952.0,1951.7,5.1270112]
[1688351257438,12.25644329,1952.0,1951.7,10.2507412]
[1688351258083,7.13340329,1952.0,1951.7,10.2507412]
[1688351258575,7.13340329,1952.0,1951.7,5.1270112]
[1688351261730,12.25644329,1952.0,1951.7,5.1270112]
[1688351261928,12.25644329,1952.0,1951.7,0.0033112]
[1688351263045,12.25644329,1952.0,1951.7,5.1269912]
[1688351264453,12.80536816,1951.9,1951.7,0.0033112]
[1688351266044,7.68199816,1951.9,1951.7,0.0033112]
[1688351266439,2.55878816,1951.9,1951.7,0.0033112]
[1688351266644,7.68200816,1951.9,1951.7,0.0033112]
[1688351266844,7.68200816,1951.9,1951.7,5.1270312]
[1688351269187,7.13342329,1952.0,1951.7,10.2507612]
[1688351269383,9.69221145,1952.0,1951.7,10.2507612]
[1688351269588,14.81518145,1952.0,1951.7,5.1270312]
[1688351270948,7.68216816,1951.9,1951.7,0.0033112]
[1688351272200,7.68216816,1951.9,1951.7,5.1270212]
[1688351276217,12.80554816,1951.9,1951.7,5.1270212]
[1688351283898,7.68216816,1951.9,1951.7,5.1270212]
[1688351291275,0.48,1951.8,1951.7,5.1270212]
[1688351293904,7.13355329,1952.0,1951.7,6.18135458]
[1688351294059,9.69234145,1952.0,1951.7,11.30508458]
[1688351295953,9.69234145,1952.0,1951.7,12.22308458]
[1688351295954,2.01045329,1952.0,1951.7,12.22308458]
[1688351297513,2.01045329,1952.0,1951.7,11.30508458]
[1688351298011,7.13348329,1952.0,1951.7,11.30508458]
[1688351298512,12.25651329,1952.0,1951.7,11.30508458]
[1688351298690,12.25651329,1952.0,1951.7,5.1270212]
[1688351299083,14.09171329,1952.0,1951.7,5.1269412]
[1688351300506,19.09171329,1952.0,1951.7,5.1269412]
[1688351301492,14.09171329,1952.0,1951.7,5.1269412]
[1688351306679,12.25651329,1952.0,1951.7,10.2506712]
[1688351306885,12.25651329,1952.0,1951.7,11.65277458]
[1688351308046,7.13348329,1952.0,1951.7,11.65277458]